bitfinex/quotes_BTCUSD_20250313
["timestamp","ask_amount","ask_price","bid_price","bid_amount"]
[1741884775670,0.0001688,81022.0,81011.0,0.12056238]
[1741884776069,0.0001688,81022.0,81017.0,0.003]
[1741884776273,0.0001688,81022.0,81017.0,0.12270099]
[1741884776518,0.0001688,81022.0,81018.0,0.12056212]
[1741884777130,0.0001688,81022.0,81019.0,0.3]
[1741884777334,0.0001688,81022.0,81020.0,0.12056184]
[1741884778738,0.0001688,81022.0,81020.0,0.11970099]
[1741884779544,0.0001688,81022.0,81019.0,0.005]
[1741884779857,0.0001688,81022.0,81012.0,0.0008612]
[1741884780060,0.0001688,81022.0,81020.0,0.005]
[1741884780462,0.0001688,81022.0,81012.0,0.0008612]
[1741884780671,0.0001688,81022.0,81013.0,0.11970099]
[1741884780866,0.0001688,81022.0,81019.0,0.003]
[1741884781036,0.0001688,81022.0,81020.0,0.11970099]
[1741884781245,0.0001688,81022.0,81021.0,0.3]
[1741884781623,0.0001688,81022.0,81021.0,0.20150099]
[1741884781780,0.0001688,81022.0,81021.0,0.20236164]
[1741884782446,0.0001688,81022.0,81021.0,0.12056164]
[1741884782596,0.0001688,81022.0,81015.0,0.15828]
[1741884782803,0.0001688,81022.0,81016.0,0.12056206]
[1741884783267,0.0001688,81022.0,81018.0,0.3]
[1741884783452,0.0001688,81022.0,81021.0,0.006]
[1741884783766,0.0001688,81022.0,81021.0,0.42656179]
[1741884783969,0.0001688,81022.0,81021.0,1.93424184]
[1741884784681,0.0001688,81022.0,81021.0,1.91970099]
[1741884785699,0.0001688,81022.0,81021.0,2.32625101]
[1741884785899,0.0001688,81022.0,81021.0,2.40785101]
[1741884786313,0.0001688,81022.0,81021.0,3.09225101]
[1741884787034,0.0004,81029.0,81025.0,0.31454085]
[1741884787236,0.0004,81029.0,81028.0,0.43424184]
[1741884787445,0.0004,81029.0,81028.0,1.51048221]
[1741884787652,0.0004,81029.0,81028.0,1.59698221]
[1741884787853,0.0004,81029.0,81028.0,1.59198221]
[1741884789620,0.0004,81029.0,81028.0,1.75058221]
[1741884789764,0.0004,81029.0,81028.0,0.75164136]
[1741884789969,0.0004,81029.0,81028.0,0.76618221]
[1741884790173,0.0004,81029.0,81028.0,1.06618221]
[1741884791663,0.0004,81029.0,81028.0,1.07218221]
[1741884791884,0.0004,81029.0,81028.0,0.67630136]
[1741884792085,0.0004,81029.0,81028.0,0.006]
[1741884792287,0.0004,81029.0,81021.0,0.11041891]
[1741884792489,0.0004,81029.0,81022.0,0.11970099]
[1741884792699,0.0004,81029.0,81028.0,0.006]
[1741884793088,0.0004,81029.0,81028.0,1.62570099]
[1741884793862,0.0004,81029.0,81028.0,2.49080221]
[1741884794037,0.0004,81029.0,81028.0,2.56740221]
[1741884794246,0.0004,81029.0,81028.0,2.61240221]
[1741884794856,0.0004,81029.0,81028.0,2.60640221]
[1741884795417,0.000169,81041.0,81028.0,2.60640221]
[1741884795566,0.000169,81041.0,81038.0,0.01454085]
[1741884795825,0.000169,81041.0,81040.0,0.3]
[1741884795960,0.000169,81041.0,81036.0,0.78352]
[1741884796164,0.259139,81038.0,81036.0,0.78352]
[1741884796365,0.000169,81041.0,81036.0,0.78352]
[1741884797247,0.24696,81041.0,81036.0,0.78352]
[1741884797474,0.259299,81041.0,81036.0,0.78352]
[1741884797878,0.259156,81032.0,81028.0,1.506]
[1741884798081,0.01234,81035.0,81028.0,1.5]
[1741884798283,0.000169,81041.0,81036.0,0.002]
[1741884798482,0.012339,81038.0,81036.0,0.002]
[1741884798705,0.259139,81038.0,81036.0,0.002]
[1741884798902,0.01234,81035.0,81028.0,1.5]
[1741884799058,0.259152,81034.0,81028.0,1.504]
[1741884799263,0.012341,81029.0,81028.0,1.504]
[1741884799489,0.012341,81029.0,81028.0,1.5]
[1741884799988,0.012341,81029.0,81010.0,0.55016037]
[1741884799989,0.012341,81028.0,81010.0,0.55016037]
[1741884800188,0.012341,81026.0,81013.0,0.90318099]
[1741884800433,0.012341,81026.0,81013.0,0.78348]
[1741884800434,0.259213,81014.0,81013.0,0.78348]
[1741884800586,0.246867,81015.0,81013.0,0.78348]
[1741884800793,0.246867,81015.0,81008.0,0.0003378]
[1741884801009,0.012342,81020.0,81008.0,0.0003378]
[1741884801010,0.246831,81027.0,81009.0,0.11970099]
[1741884801288,0.012341,81029.0,81009.0,0.11970099]
[1741884801289,0.012341,81025.0,81009.0,0.11970099]
[1741884801489,0.30897,81028.0,81010.0,0.00086153]
[1741884801696,0.0498,81028.0,81011.0,0.11970099]
[1741884801898,0.01234,81035.0,81012.0,0.00086139]
[1741884802143,0.246837,81026.0,81013.0,0.12470099]
[1741884802547,0.246841,81024.0,81013.0,0.11970099]
[1741884802970,0.246838,81025.0,81013.0,0.11970099]
[1741884803169,0.246838,81025.0,81011.0,0.002]
[1741884803170,0.25921,81015.0,81014.0,1.5]
[1741884803387,0.012342,81022.0,81008.0,0.0003378]
[1741884803388,0.259191,81022.0,81008.0,0.0003378]
[1741884803830,0.259172,81027.0,81013.0,0.003]
[1741884803993,0.246843,81023.0,81013.0,0.003]
[1741884804274,0.0121191,81029.0,81013.0,0.12270099]
[1741884804655,0.259169,81028.0,81013.0,0.12270099]
[1741884804851,0.259174,81027.0,81013.0,0.12270099]
[1741884805066,0.012342,81024.0,81013.0,0.11970099]
[1741884805251,0.02485073,81029.0,81013.0,0.11970099]
[1741884805569,0.01250973,81029.0,81013.0,0.11970099]
[1741884805777,0.01234,81032.0,81008.0,0.0013378]
[1741884805778,0.246801,81037.0,81014.0,0.12056236]
[1741884805945,0.01234,81035.0,81014.0,0.12056236]
[1741884806148,0.259156,81032.0,81014.0,0.12056236]
[1741884806470,0.246831,81027.0,81014.0,0.11970099]
[1741884807115,0.246831,81027.0,81014.0,0.001]
[1741884807116,0.012342,81021.0,81014.0,0.001]
[1741884807318,0.012343,81015.0,81014.0,0.001]
[1741884808857,0.012343,81015.0,81008.0,0.0003378]
[1741884808858,0.012344,81010.0,81008.0,0.0003378]
[1741884809058,0.25923,81010.0,81008.0,0.0003378]
[1741884809272,0.246886,81010.0,81008.0,0.0003378]
[1741884810186,0.012344,81009.0,81008.0,0.0003378]
[1741884810388,0.24687,81014.0,81008.0,0.0003378]
[1741884810543,0.24688,81011.0,81008.0,0.0003378]
[1741884810745,0.246886,81009.0,81008.0,0.0003378]
[1741884811064,0.25923,81009.0,81008.0,0.0003378]
[1741884811599,0.01249586,81012.0,81008.0,0.0003378]
[1741884812027,0.012343,81014.0,81008.0,0.0003378]
[1741884812028,0.259218,81013.0,81008.0,0.0003378]
[1741884812244,0.01218837,81012.0,81008.0,0.0053378]
[1741884812499,0.259218,81013.0,81008.0,0.0053378]
[1741884812749,0.012344,81009.0,81008.0,0.0053378]
[1741884812984,0.012344,81009.0,81008.0,0.0003378]
[1741884813218,0.59050805,81009.0,81008.0,0.0003378]
[1741884813470,0.58896499,81009.0,81008.0,0.0003378]
[1741884814181,0.61422952,81009.0,81008.0,0.0003378]
[1741884814379,0.69002952,81009.0,81008.0,0.0003378]
[1741884815276,0.74002952,81009.0,81008.0,0.0010008]
[1741884816365,0.69002952,81009.0,81008.0,0.0010008]
[1741884816624,0.74002952,81009.0,81008.0,0.0010008]
[1741884816858,0.74002952,81009.0,81008.0,8e-07]
[1741884817106,0.74002952,81009.0,80971.0,0.78368]
[1741884817107,0.259319,80981.0,80971.0,0.78368]
[1741884818254,0.259319,80981.0,80954.0,0.43684037]
[1741884818255,0.559319,80981.0,80954.0,0.39184037]
[1741884818502,0.69138915,80981.0,80954.0,0.39184037]
[1741884818782,0.69138915,80981.0,80980.0,0.003338]
[1741884819934,0.69138915,80981.0,80980.0,0.000338]
[1741884820367,0.69438915,80981.0,80980.0,0.000338]
[1741884820865,0.7665533,80981.0,80980.0,0.000338]
[1741884821061,0.259383,80961.0,80946.0,0.78388]
[1741884821280,0.559383,80961.0,80946.0,0.78388]
[1741884823222,0.012353,80948.0,80947.0,1.49662285]
[1741884824267,0.259428,80947.0,80933.0,0.15628]
[1741884824468,0.259428,80947.0,80934.0,0.11970099]
[1741884824730,0.247071,80949.0,80935.0,1.5]
[1741884824886,0.01264292,80947.0,80936.0,0.11970099]
[1741884825231,0.001,80948.0,80937.0,0.0008643]
[1741884825386,0.247044,80958.0,80938.0,0.11970099]
[1741884825586,0.259396,80958.0,80939.0,1.5]
[1741884825792,0.001,80947.0,80940.0,0.11970099]
[1741884826195,0.001,80947.0,80941.0,0.00086415]
[1741884826419,0.001,80947.0,80942.0,0.11970099]
[1741884826633,0.001,80947.0,80943.0,0.00086386]
[1741884826820,0.001,80947.0,80944.0,0.11970099]
[1741884827121,0.001,80947.0,80945.0,0.00086386]
[1741884827324,0.001,80947.0,80946.0,0.11970099]
[1741884827571,0.001,80947.0,80946.0,0.89234136]
[1741884827777,0.01263057,80966.0,80946.0,0.90460614]
[1741884827986,0.259341,80975.0,80947.0,0.0008635]
[1741884828186,0.259344,80974.0,80948.0,0.11970099]
[1741884828440,0.246999,80972.0,80949.0,0.0008635]
[1741884828617,0.246999,80972.0,80950.0,0.11970099]
[1741884828618,0.01235,80967.0,80950.0,0.11970099]
[1741884828828,0.259348,80972.0,80950.0,0.11970099]
[1741884829033,0.01234758,80967.0,80951.0,0.0008635]
[1741884829237,0.012349,80972.0,80952.0,0.11970099]
[1741884829448,0.259336,80976.0,80953.0,0.0008635]
[1741884829601,0.259336,80976.0,80954.0,0.11970099]
[1741884829812,0.27153035,80976.0,80955.0,0.0008635]
[1741884830014,0.012349,80973.0,80956.0,0.11970099]
[1741884830214,0.02454335,80976.0,80956.0,0.11970099]
[1741884830415,0.01219435,80976.0,80956.0,0.11970099]
[1741884830617,0.15632,80979.0,80957.0,0.00086351]
[1741884830816,0.15632,80979.0,80958.0,0.11970099]
[1741884830998,0.15632,80979.0,80959.0,0.00086333]
[1741884831203,0.15632,80979.0,80960.0,0.11970099]
[1741884831405,0.415646,80979.0,80960.0,0.12056432]
[1741884831606,0.246984,80977.0,80960.0,0.12056432]
[1741884831806,0.24699,80975.0,80960.0,0.12056432]
[1741884832013,0.259345,80973.0,80960.0,0.11970099]
[1741884832225,0.259345,80973.0,80954.0,0.39184037]
[1741884832226,0.012351,80964.0,80954.0,0.39184037]
[1741884832504,0.012352,80957.0,80954.0,0.39184037]
[1741884832709,0.012352,80958.0,80954.0,0.39184037]
[1741884832935,0.012351,80960.0,80954.0,0.39184037]
[1741884833623,0.259402,80955.0,80954.0,0.39184037]
[1741884834248,0.012352,80958.0,80954.0,0.39184037]
[1741884834447,0.259396,80957.0,80954.0,0.39184037]
[1741884834680,0.24705,80955.0,80954.0,0.39184037]
[1741884835226,0.31235,80969.0,80954.0,0.39384037]
[1741884835446,0.01235,80969.0,80954.0,0.39384037]
[1741884835655,0.247033,80961.0,80946.0,0.0003382]
[1741884835852,0.247033,80961.0,80947.0,0.11970099]
[1741884836052,0.259389,80960.0,80954.0,0.004]
[1741884836391,0.247025,80964.0,80954.0,0.004]
[1741884836514,0.247034,80961.0,80947.0,0.11970099]
[1741884836716,0.012352,80958.0,80947.0,0.11970099]
[1741884836964,0.259395,80958.0,80947.0,0.11970099]
[1741884837278,0.247043,80958.0,80947.0,0.11970099]
[1741884837632,0.259395,80958.0,80947.0,0.11970099]
[1741884837844,0.259402,80956.0,80947.0,0.11970099]
[1741884838040,0.247054,80954.0,80947.0,0.11970099]
[1741884838444,0.012353,80947.0,80946.0,0.0003382]
[1741884839606,0.02450677,80947.0,80946.0,0.0003382]
[1741884840159,0.02450677,80947.0,80946.0,0.0033382]
[1741884840358,0.01215377,80947.0,80946.0,0.0033382]
[1741884840596,0.012353,80947.0,80946.0,0.0033382]
[1741884841158,0.259424,80949.0,80946.0,0.0033382]
[1741884841375,0.012353,80947.0,80946.0,0.0033382]
[1741884841584,0.02471315,80947.0,80946.0,0.0033382]
[1741884842013,0.02471315,80947.0,80946.0,0.0003382]
[1741884842248,0.01236015,80947.0,80946.0,0.0003382]
[1741884842390,0.02471315,80947.0,80946.0,0.0003382]
[1741884842594,0.012352,80953.0,80946.0,0.0033382]
[1741884842819,0.259414,80952.0,80946.0,0.0033382]
[1741884843019,0.259427,80948.0,80946.0,0.0003382]
[1741884843224,0.012353,80947.0,80946.0,0.0003382]
[1741884845042,0.012353,80947.0,80946.0,0.0033382]
[1741884846950,0.01266041,80948.0,80946.0,0.0033382]
[1741884847359,0.012353,80951.0,80946.0,0.0033382]
[1741884847507,0.01266412,80949.0,80946.0,0.0033382]
[1741884847733,0.25942,80950.0,80946.0,0.0033382]
[1741884847973,0.247071,80949.0,80946.0,0.0033382]
[1741884848132,0.25942,80950.0,80946.0,0.0033382]
[1741884848350,0.0001691,80951.0,80946.0,0.0033382]
[1741884848875,0.012353,80947.0,80946.0,0.0003382]
[1741884849091,0.012353,80950.0,80946.0,0.0033382]
[1741884849313,0.0001691,80951.0,80946.0,0.0033382]
[1741884849699,0.0001691,80951.0,80946.0,0.0003382]
[1741884850157,0.0001691,80951.0,80946.0,0.0023382]
[1741884850943,0.012353,80947.0,80946.0,0.0023382]
[1741884851613,0.01389732,80947.0,80946.0,0.0023382]
[1741884852032,0.01389732,80947.0,80946.0,0.0003382]
[1741884852476,0.31389732,80947.0,80946.0,0.0033382]
[1741884852682,0.312353,80947.0,80946.0,0.0033382]
[1741884852966,0.312353,80947.0,80946.0,0.0003382]
[1741884853173,0.312353,80947.0,80946.0,0.0023382]
[1741884853522,0.312353,80947.0,80946.0,0.0003382]
[1741884853909,0.312353,80947.0,80946.0,0.0023382]
[1741884854110,0.43205399,80947.0,80946.0,0.0023382]
[1741884856259,0.259477,80932.0,80931.0,0.000238]
[1741884856464,0.67917799,80932.0,80931.0,0.000238]
[1741884856667,0.012359,80911.0,80903.0,0.0804447]
[1741884856866,0.012359,80908.0,80903.0,0.0804447]
[1741884857072,0.012359,80911.0,80903.0,0.0804447]
[1741884857254,0.18133069,80920.0,80903.0,0.0804447]
[1741884857458,0.012358,80916.0,80903.0,0.0804447]
[1741884857804,0.42849069,80920.0,80903.0,0.0804447]
[1741884857805,0.259549,80910.0,80903.0,0.0804447]
[1741884858009,0.259578,80900.0,80894.0,0.0469]
[1741884858262,0.259578,80900.0,80893.0,0.0003374]
[1741884858263,0.01236,80900.0,80893.0,0.0003374]
[1741884858845,0.13360635,80900.0,80893.0,0.0003374]
[1741884859053,0.43360635,80900.0,80893.0,0.0003374]
[1741884859278,0.43206099,80900.0,80893.0,0.0003374]
[1741884859912,0.45676958,80900.0,80893.0,0.0003374]
[1741884860164,0.33706859,80900.0,80899.0,0.002338]
[1741884861002,0.33706859,80900.0,80899.0,0.000338]
[1741884861443,0.02470859,80900.0,80899.0,0.001338]
[1741884861635,0.01236,80901.0,80899.0,0.001338]
[1741884861964,0.259578,80900.0,80899.0,0.001338]
[1741884862168,0.37927899,80900.0,80899.0,0.001338]
[1741884862738,0.37927899,80900.0,80899.0,0.000338]
[1741884863139,0.37927899,80900.0,80899.0,0.001338]
[1741884863348,0.70358896,80900.0,80899.0,0.001338]
[1741884863548,0.70358896,80900.0,80899.0,0.000338]
[1741884863709,0.82808896,80900.0,80899.0,0.000338]
[1741884863910,0.82808896,80900.0,80899.0,0.001338]
[1741884864118,0.84262981,80900.0,80899.0,0.001338]
[1741884864323,0.84762981,80900.0,80899.0,0.000338]
[1741884864541,0.89762981,80900.0,80899.0,1e-06]
[1741884864741,0.564598,80894.0,80893.0,4e-07]
[1741884864964,0.69883984,80894.0,80893.0,4e-07]
[1741884865210,0.559627,80885.0,80879.0,0.0003374]
[1741884865380,0.83568799,80885.0,80879.0,0.0003374]
[1741884867111,0.83768799,80885.0,80879.0,0.0003374]
[1741884867693,0.69355997,80885.0,80879.0,0.0003374]
[1741884867907,0.61505897,80885.0,80879.0,0.0003374]
[1741884868510,0.33895798,80885.0,80879.0,0.0003374]
[1741884870019,0.32659498,80885.0,80879.0,0.0003374]
[1741884870219,0.002,80885.0,80879.0,0.0003374]
[1741884870626,0.002,80885.0,80880.0,0.0814]
[1741884872091,0.247261,80886.0,80880.0,0.0814]
[1741884872092,0.259624,80886.0,80880.0,0.0814]
[1741884872275,0.247251,80890.0,80880.0,0.0814]
[1741884872477,0.247242,80893.0,80880.0,0.0814]
[1741884872658,0.259627,80885.0,80880.0,0.0814]
[1741884873095,0.259627,80885.0,80879.0,0.0003374]
[1741884874648,0.67932799,80885.0,80879.0,0.0003374]
[1741884875434,0.3,80885.0,80879.0,0.0003374]
[1741884875666,0.27208878,80892.0,80879.0,0.0003374]
[1741884875829,0.28445078,80892.0,80879.0,0.0003374]
[1741884876014,0.247251,80890.0,80879.0,0.0003374]
[1741884876212,0.259626,80886.0,80879.0,0.0003374]
[1741884876451,0.012363,80886.0,80879.0,0.0003374]
[1741884876869,0.012362,80890.0,80879.0,0.0003374]
[1741884877390,0.259616,80889.0,80879.0,0.0003374]
[1741884877589,0.012362,80888.0,80879.0,0.0003374]
[1741884877764,0.012363,80885.0,80879.0,0.0003374]
[1741884878475,0.02265853,80875.0,80872.0,0.0001689]
[1741884881550,0.03502253,80875.0,80872.0,0.0001689]
[1741884882676,0.02265853,80875.0,80872.0,0.0001689]
[1741884883282,0.012362,80887.0,80872.0,0.0001689]
[1741884883283,0.3,80884.0,80872.0,0.0001689]
[1741884883667,0.01235779,80884.0,80875.0,0.0793]
[1741884883863,0.259627,80886.0,80875.0,0.0793]
[1741884884093,0.012363,80883.0,80875.0,0.0793]
[1741884884337,0.247279,80881.0,80875.0,0.0793]
[1741884885558,0.01250127,80884.0,80875.0,0.0793]
[1741884885986,0.012362,80888.0,80875.0,0.0793]
[1741884886186,0.01261136,80884.0,80875.0,0.0793]
[1741884886336,0.247267,80885.0,80875.0,0.0793]
[1741884886940,0.259626,80886.0,80875.0,0.0793]
[1741884886941,0.012363,80883.0,80875.0,0.0793]
[1741884887148,0.247274,80882.0,80875.0,0.0793]
[1741884887532,0.012363,80883.0,80875.0,0.0793]
[1741884888150,0.259635,80883.0,80875.0,0.0793]
[1741884889252,0.27170083,80885.0,80875.0,0.0793]
[1741884889391,0.012363,80881.0,80875.0,0.0793]
[1741884889601,0.012364,80879.0,80875.0,0.0793]
[1741884890011,0.247292,80876.0,80872.0,0.0001689]
[1741884890205,0.259646,80879.0,80872.0,0.0001689]
[1741884891421,0.259636,80882.0,80872.0,0.0001689]
[1741884891581,0.259642,80881.0,80872.0,0.0001689]
[1741884891979,0.012363,80884.0,80872.0,0.0001689]
[1741884892181,0.012364,80879.0,80872.0,0.0001689]
[1741884892585,0.012363,80881.0,80872.0,0.0001689]
[1741884892870,0.247288,80878.0,80872.0,0.0001689]
[1741884893272,0.259655,80877.0,80872.0,0.0001689]
[1741884893447,0.012363,80883.0,80872.0,0.0001689]
[1741884893653,0.01207083,80885.0,80872.0,0.0001689]
[1741884893997,0.24726,80887.0,80872.0,0.0001689]
[1741884894199,0.247268,80884.0,80872.0,0.0001689]
[1741884894531,0.259635,80883.0,80872.0,0.0001689]
[1741884894936,0.247278,80881.0,80872.0,0.0001689]
[1741884895115,0.012364,80875.0,80872.0,0.0001689]
[1741884895319,0.25965,80878.0,80872.0,0.0001689]
[1741884895734,0.012363,80885.0,80872.0,0.0001689]
[1741884895933,0.247264,80886.0,80872.0,0.0001689]
[1741884896137,0.000338,80887.0,80872.0,0.0001689]
[1741884897704,0.000338,80887.0,80874.0,0.01273822]
[1741884897839,0.000338,80887.0,80875.0,0.11970099]
[1741884898255,0.000338,80887.0,80876.0,1.5]
[1741884898463,0.000338,80887.0,80876.0,1.61970099]
[1741884900112,0.247263,80886.0,80876.0,1.61970099]
[1741884900399,0.259959,80887.0,80876.0,1.61970099]
[1741884900615,0.000338,80887.0,80876.0,1.61970099]
[1741884901263,0.000338,80887.0,80877.0,0.20076762]
[1741884901477,0.000338,80887.0,80878.0,0.0452]
[1741884901702,0.000338,80887.0,80879.0,0.12056727]
[1741884902256,0.000338,80887.0,80880.0,0.70638122]
[1741884902465,0.000338,80887.0,80885.0,0.0833]
[1741884902664,0.000338,80887.0,80886.0,0.43424184]
[1741884902847,0.000338,80887.0,80886.0,0.41970099]
[1741884903299,0.000338,80887.0,80886.0,1.91970099]
[1741884903521,0.000338,80887.0,80885.0,0.0833]
[1741884903522,0.247261,80886.0,80885.0,0.0833]
[1741884903701,0.247267,80884.0,80878.0,0.0755]
[1741884903903,0.000338,80887.0,80878.0,0.0755]
[1741884904436,0.012363,80886.0,80878.0,0.0755]
[1741884904856,0.247598,80887.0,80878.0,0.0755]
[1741884905058,0.012363,80882.0,80878.0,0.0755]
[1741884905263,0.012363,80885.0,80878.0,0.0755]
[1741884905683,0.000338,80887.0,80879.0,0.11970099]
[1741884906114,0.000338,80887.0,80880.0,0.0008664]
[1741884906329,0.000338,80887.0,80881.0,0.11970099]
[1741884906739,0.000338,80887.0,80878.0,0.0755]
[1741884906959,0.0127,80887.0,80878.0,0.0755]
[1741884907165,0.000338,80887.0,80878.0,0.0755]
[1741884907782,0.000338,80887.0,80879.0,0.11970099]
[1741884908299,0.012363,80884.0,80878.0,0.0755]
[1741884908422,0.24728,80880.0,80876.0,0.000169]
[1741884908630,0.012364,80877.0,80876.0,0.000169]
[1741884908837,0.259642,80880.0,80876.0,0.000169]
[1741884909155,0.012364,80877.0,80876.0,0.000169]
[1741884910134,0.259645,80880.0,80876.0,0.000169]
[1741884910356,0.0127,80887.0,80876.0,0.000169]
[1741884911200,0.259633,80884.0,80876.0,0.000169]
[1741884911573,0.27204007,80884.0,80876.0,0.000169]
[1741884912181,0.01240707,80884.0,80876.0,0.000169]
[1741884912575,0.247264,80885.0,80876.0,0.000169]
[1741884912793,0.012363,80883.0,80876.0,0.000169]
[1741884913157,0.000338,80887.0,80876.0,0.000169]
[1741884913692,0.247261,80886.0,80876.0,0.000169]
[1741884913893,0.000338,80887.0,80876.0,0.000169]
[1741884915868,0.012363,80882.0,80876.0,0.000169]
[1741884916055,0.012363,80883.0,80876.0,0.000169]
[1741884916257,0.247277,80881.0,80876.0,0.000169]
[1741884916400,0.247281,80880.0,80876.0,0.000169]
[1741884916598,0.247288,80878.0,80876.0,0.000169]
[1741884916827,0.012364,80877.0,80876.0,0.000169]
[1741884919006,0.247247,80891.0,80876.0,0.000169]
[1741884919370,0.247597,80887.0,80876.0,0.000169]
[1741884919567,0.012363,80886.0,80876.0,0.000169]
[1741884919977,0.247268,80884.0,80876.0,0.000169]
[1741884920177,0.259645,80880.0,80876.0,0.000169]
[1741884920408,0.000338,80887.0,80876.0,0.000169]
[1741884921397,0.000338,80887.0,80877.0,0.24256778]
[1741884921647,0.000338,80887.0,80878.0,0.3]
[1741884921896,0.000338,80887.0,80883.0,0.01454085]
[1741884922101,0.000338,80887.0,80886.0,0.0791]
[1741884922342,0.000338,80887.0,80886.0,0.49966681]
[1741884922552,0.000338,80887.0,80886.0,0.49880099]
[1741884922781,0.001338,80887.0,80886.0,0.49880099]
[1741884923206,0.000338,80887.0,80886.0,1.99880099]
[1741884923406,0.000338,80887.0,80886.0,2.01141391]
[1741884924912,0.000338,80887.0,80886.0,2.01641391]
[1741884926298,0.000338,80887.0,80886.0,2.00380099]
[1741884927114,0.000338,80887.0,80886.0,2.01834184]
[1741884927286,0.000338,80887.0,80886.0,2.06444184]
[1741884928823,0.000338,80887.0,80886.0,2.05944184]
[1741884929025,0.000338,80887.0,80886.0,2.20114099]
[1741884929236,0.000338,80887.0,80886.0,0.70714099]
[1741884929439,0.001338,80887.0,80886.0,0.41214099]
[1741884929667,0.001338,80887.0,80886.0,0.20980099]
[1741884930092,0.000338,80887.0,80886.0,0.20480099]
[1741884930290,0.000338,80887.0,80886.0,0.20380099]
[1741884930291,0.001338,80887.0,80886.0,0.20380099]
[1741884930653,0.001338,80887.0,80886.0,0.20980099]
[1741884931792,0.001338,80887.0,80886.0,0.20380099]
[1741884932230,0.001338,80887.0,80886.0,0.20880099]
[1741884932434,0.000338,80887.0,80886.0,0.20380099]
[1741884932853,0.001338,80887.0,80886.0,0.20780099]
[1741884933063,0.001338,80887.0,80886.0,0.20280099]
[1741884933240,0.000338,80887.0,80886.0,1.69880099]
[1741884933393,0.001338,80887.0,80886.0,1.70780099]
[1741884933612,0.001338,80887.0,80886.0,1.70280099]
[1741884935059,0.001338,80887.0,80886.0,1.70780099]
[1741884935265,0.001338,80887.0,80886.0,1.62870099]
[1741884936087,0.000338,80887.0,80886.0,1.62470099]
[1741884936287,0.001338,80887.0,80886.0,1.62370099]
[1741884936706,0.001338,80887.0,80886.0,1.62870099]
[1741884939068,0.02433764,80887.0,80886.0,1.62870099]
[1741884939707,0.02433764,80887.0,80886.0,0.009]
[1741884940085,0.02433764,80887.0,80886.0,1.62870099]
[1741884940300,0.02333764,80887.0,80886.0,1.62470099]
[1741884940716,0.02333764,80887.0,80886.0,1.70520099]
[1741884941080,0.02333764,80887.0,80886.0,2.06864184]
[1741884941330,0.02333764,80887.0,80886.0,2.06464184]
[1741884941478,0.000338,80887.0,80886.0,2.05964184]
[1741884941685,0.000338,80887.0,80886.0,2.06364184]
[1741884942425,0.000338,80887.0,80886.0,2.05964184]
[1741884942557,0.000338,80887.0,80886.0,2.06764184]
[1741884942756,0.000338,80887.0,80886.0,2.06364184]
[1741884942979,0.000338,80887.0,80886.0,2.05964184]
[1741884943173,0.000338,80887.0,80886.0,2.06564184]
[1741884943377,0.000338,80887.0,80886.0,2.07164184]
[1741884944350,0.000338,80887.0,80886.0,2.07181084]
[1741884945911,0.000338,80887.0,80886.0,2.05726999]
[1741884946119,0.000338,80887.0,80886.0,1.86448999]
[1741884946315,0.000338,80887.0,80886.0,1.78798999]
[1741884946539,0.000338,80887.0,80886.0,1.63186999]
[1741884947066,0.000338,80887.0,80886.0,1.62586999]
[1741884947460,0.000338,80887.0,80886.0,1.63086999]
[1741884948524,0.000338,80887.0,80886.0,1.62486999]
[1741884948703,0.000338,80887.0,80886.0,1.62986999]
[1741884954517,0.000338,80887.0,80886.0,1.64441084]
[1741884955297,0.000338,80887.0,80886.0,1.62986999]
[1741884956000,0.000338,80887.0,80886.0,1.78594999]
[1741884957035,0.000338,80887.0,80886.0,1.78094999]
[1741884957435,0.000338,80887.0,80886.0,0.12486999]
[1741884957637,0.000338,80887.0,80886.0,0.010169]
[1741884958556,0.0127,80887.0,80886.0,0.005169]
[1741884958698,0.0127,80887.0,80886.0,0.009169]
[1741884958909,0.000338,80887.0,80886.0,0.009169]
[1741884959110,0.000338,80887.0,80886.0,0.004169]
[1741884959311,0.000338,80887.0,80886.0,0.008169]
[1741884959932,0.0127,80887.0,80886.0,0.008169]
[1741884960496,0.71658659,80887.0,80886.0,0.008169]
[1741884960782,0.71504099,80887.0,80886.0,0.008169]
[1741884961015,0.75090096,80887.0,80886.0,0.008169]
[1741884961933,0.642353,80877.0,80876.0,0.000169]
[1741884962173,0.79791396,80877.0,80876.0,0.000169]
[1741884962403,0.84631396,80877.0,80876.0,0.000169]
[1741884962870,0.84631396,80877.0,80874.0,0.0001689]
[1741884962871,0.559659,80875.0,80874.0,0.0001689]
[1741884963099,0.71521996,80875.0,80874.0,0.0001689]
[1741884964081,0.67935999,80875.0,80874.0,0.0001689]
[1741884965511,0.70862221,80875.0,80874.0,0.0001689]
[1741884967627,0.60500321,80875.0,80874.0,0.0001689]
[1741884967884,0.005,80875.0,80874.0,0.0001689]
[1741884968634,0.003,80875.0,80874.0,0.0001689]
[1741884968857,0.44137136,80886.0,80874.0,0.0001689]
[1741884969095,0.12166143,80883.0,80874.0,0.0001689]
[1741884969560,0.10929843,80883.0,80874.0,0.0011689]
[1741884969822,0.012364,80879.0,80874.0,0.0011689]
[1741884970057,0.259649,80879.0,80874.0,0.0021689]
[1741884970520,0.012364,80878.0,80874.0,0.0021689]
[1741884970717,0.259659,80875.0,80874.0,0.0021689]
[1741884970928,0.259659,80875.0,80874.0,0.0011689]
[1741884971166,0.013363,80883.0,80874.0,0.0011689]
[1741884971399,0.012363,80880.0,80874.0,0.0011689]
[1741884971675,0.247267,80884.0,80874.0,0.0011689]
[1741884971890,0.000338,80887.0,80874.0,0.0001689]
[1741884972103,0.259624,80886.0,80874.0,0.0001689]
[1741884972326,0.012363,80885.0,80874.0,0.0001689]
[1741884972556,0.001,80883.0,80874.0,0.0011689]
[1741884972781,0.247278,80881.0,80874.0,0.0011689]
[1741884973019,0.247278,80881.0,80874.0,0.0001689]
[1741884973020,0.259641,80881.0,80874.0,0.0001689]
[1741884973209,0.259617,80889.0,80874.0,0.0001689]
[1741884973447,0.002338,80887.0,80874.0,0.0001689]
[1741884973903,0.000338,80887.0,80875.0,0.20080099]
[1741884974351,0.001,80884.0,80875.0,0.20080099]